bitfinex/quotes_ETHUSD_20230105
["timestamp","ask_amount","ask_price","bid_price","bid_amount"]
[1672936820072,3.0347397,1248.6,1248.5,0.0993996]
[1672936820309,3.0347397,1248.6,1248.5,0.03581576]
[1672936821216,11.64133093,1248.6,1248.5,0.03581576]
[1672936821420,11.70533093,1248.6,1248.5,0.03581576]
[1672936821677,14.83766607,1248.6,1248.5,0.03581576]
[1672936822840,22.84663607,1248.6,1248.5,0.03581576]
[1672936823268,27.84663607,1248.6,1248.5,0.03581576]
[1672936823801,19.83766607,1248.6,1248.5,0.03581576]
[1672936824015,27.84663607,1248.6,1248.5,0.03581576]
[1672936824371,27.84663607,1248.6,1248.5,0.03348054]
[1672936824633,19.83766607,1248.6,1248.5,0.03348054]
[1672936824849,11.82869607,1248.6,1248.5,0.03348054]
[1672936825485,19.83766607,1248.6,1248.5,0.03348054]
[1672936825641,11.82869607,1248.6,1248.5,0.03348054]
[1672936825852,27.84663607,1248.6,1248.5,0.03348054]
[1672936827445,11.82869607,1248.6,1248.5,0.03348054]
[1672936827655,11.82869607,1248.6,1248.5,8.04309054]
[1672936827948,11.82869607,1248.6,1248.5,8.10667438]
[1672936829561,11.82869607,1248.6,1248.5,16.11628438]
[1672936830993,8.69636093,1248.6,1248.5,16.11628438]
[1672936831412,11.09355151,1248.6,1248.5,24.12589438]
[1672936831640,11.09355151,1248.6,1248.5,32.13550438]
[1672936832433,8.09753147,1248.6,1248.5,32.13550438]
[1672936832578,3.09753147,1248.6,1248.5,32.13550438]
[1672936832791,3.03353147,1248.6,1248.5,36.52380615]
[1672936834071,0.63634089,1248.6,1248.5,36.52380615]
[1672936835399,0.63634089,1248.6,1248.5,36.9676149]
[1672936835609,0.63634089,1248.6,1248.5,39.9676149]
[1672936837993,3.03353147,1248.6,1248.5,39.9676149]
[1672936838291,3.03353147,1248.6,1248.5,15.9387849]
[1672936838655,3.03353147,1248.6,1248.5,23.9483949]
[1672936838920,3.03353147,1248.6,1248.5,15.9387849]
[1672936839107,3.03353147,1248.6,1248.5,11.55048313]
[1672936839367,3.03353147,1248.6,1248.5,16.11628438]
[1672936839575,6.02955151,1248.6,1248.5,16.11628438]
[1672936839796,6.09355151,1248.6,1248.5,24.12589438]
[1672936840442,6.09355151,1248.6,1248.5,16.11628438]
[1672936840840,3.09753147,1248.6,1248.5,16.11628438]
[1672936841060,3.03353147,1248.6,1248.5,24.12589438]
[1672936845644,3.03353147,1248.6,1248.5,16.11628438]
[1672936846125,3.03353147,1248.6,1248.5,16.11285205]
[1672936846485,3.03353147,1248.6,1248.5,24.12246205]
[1672936846906,3.03353147,1248.6,1248.5,16.11285205]
[1672936847385,3.03353147,1248.6,1248.5,8.10324205]
[1672936848290,3.03353147,1248.6,1248.5,0.09363205]
[1672936848643,6.03043725,1248.6,1248.5,0.03004821]
[1672936848853,11.70533093,1248.6,1248.5,0.03004821]
[1672936849254,3.69636093,1248.6,1248.5,0.03004821]
[1672936849467,3.63236093,1248.6,1248.5,0.03004821]
[1672936850068,6.0303105,1248.6,1248.5,8.03965821]
[1672936850270,3.69636093,1248.6,1248.5,8.10324205]
[1672936850647,6.03076005,1248.6,1248.5,8.10324205]
[1672936850856,6.09456651,1248.6,1248.5,0.09363205]
[1672936851165,3.69636093,1248.6,1248.5,0.03004821]
[1672936851382,5.40273662,1248.6,1248.5,0.03004821]
[1672936851531,5.46673662,1248.6,1248.5,0.03004821]
[1672936852612,5.46673662,1248.6,1248.5,8.03965821]
[1672936852957,5.46673662,1248.6,1248.5,8.10324205]
[1672936853783,3.69636093,1248.6,1248.5,8.10324205]
[1672936853995,3.63236093,1248.6,1248.5,0.09363205]
[1672936854364,8.63236093,1248.6,1248.5,0.03004821]
[1672936854686,8.69636093,1248.6,1248.5,0.03004821]
[1672936856250,8.74636093,1248.6,1248.5,0.03004821]
[1672936856421,12.39374206,1248.6,1248.5,0.03004821]
[1672936856640,8.69636093,1248.6,1248.5,16.04926821]
[1672936856844,8.69636093,1248.6,1248.5,24.12246205]
[1672936857420,11.09406134,1248.6,1248.5,24.12246205]
[1672936857625,8.69636093,1248.6,1248.5,24.12246205]
[1672936857837,11.09405548,1248.6,1248.5,24.12246205]
[1672936858756,8.69636093,1248.6,1248.5,24.12246205]
[1672936859471,11.09431381,1248.6,1248.5,24.12246205]
[1672936859695,8.09829377,1248.6,1248.5,32.13207205]
[1672936860042,3.09829377,1248.6,1248.5,34.35516708]
[1672936860358,3.08429377,1248.6,1248.5,34.35516708]
[1672936860529,3.03429377,1248.6,1248.5,34.35516708]
[1672936862206,3.03429377,1248.6,1248.5,32.13207205]
[1672936865214,6.03031381,1248.6,1248.5,32.13207205]
[1672936865372,6.09431381,1248.6,1248.5,32.13207205]
[1672936867262,6.09431381,1248.6,1248.5,32.12852935]
[1672936872344,3.09829377,1248.6,1248.5,32.12852935]
[1672936872497,3.03429377,1248.6,1248.5,32.12852935]
[1672936872712,6.03031381,1248.6,1248.5,32.12852935]
[1672936873032,6.09431381,1248.6,1248.5,32.12852935]
[1672936874956,3.09829377,1248.6,1248.5,32.12852935]
[1672936875197,3.03429377,1248.6,1248.5,32.12852935]
[1672936877054,3.03429377,1248.6,1248.5,36.51613362]
[1672936878236,0.63634089,1248.6,1248.5,36.51613362]
[1672936879459,3.03429377,1248.6,1248.5,36.51613362]
[1672936883695,0.63634089,1248.6,1248.5,36.51613362]
[1672936884123,0.63634089,1248.6,1248.5,36.95994237]
[1672936884553,3.03429377,1248.6,1248.5,36.95994237]
[1672936884763,0.63634089,1248.6,1248.5,36.95994237]
[1672936884979,3.03429377,1248.6,1248.5,36.95994237]
[1672936885495,6.03031381,1248.6,1248.5,20.94072237]
[1672936885704,6.09431381,1248.6,1248.5,16.5531181]
[1672936885916,6.09431381,1248.6,1248.5,0.5338981]
[1672936886182,6.09431381,1248.6,1248.5,0.47031426]
[1672936886390,6.09431381,1248.6,1248.5,16.48953426]
[1672936886606,6.09431381,1248.6,1248.5,16.5531181]
[1672936888780,6.09431381,1248.6,1248.5,8.5435081]
[1672936889761,6.09431381,1248.6,1248.5,16.5531181]
[1672936890825,6.09431381,1248.6,1248.5,16.54982995]
[1672936892185,3.69636093,1248.6,1248.5,16.54982995]
[1672936892493,6.03084953,1248.6,1248.5,8.54021995]
[1672936892723,6.09484953,1248.6,1248.5,8.54021995]
[1672936893039,6.09535427,1248.6,1248.5,8.54021995]
[1672936893932,6.09535427,1248.6,1248.5,16.54982995]
[1672936896447,3.09933423,1248.6,1248.5,24.55943995]
[1672936896658,3.03533423,1248.6,1248.5,24.55943995]
[1672936899439,0.63634089,1248.6,1248.5,24.55943995]
[1672936899649,3.03533423,1248.6,1248.5,24.55943995]
[1672936899863,0.77924666,1248.6,1248.5,24.55943995]
[1672936900400,0.77924666,1248.6,1248.5,25.78452509]
[1672936900544,1e-08,1248.6,1248.5,35.78250449]
[1672936902385,1e-08,1248.6,1248.5,33.79413509]
[1672936917341,1e-08,1248.6,1248.5,35.78249447]
[1672936917936,1e-08,1248.6,1248.5,33.79413509]
[1672936918768,1e-08,1248.6,1248.5,25.78452509]
[1672936918974,1e-08,1248.6,1248.5,33.79413509]
[1672936921460,0.00200001,1248.6,1248.5,33.79213509]
[1672936921613,1e-08,1248.6,1248.5,33.79413509]
[1672936923399,1e-08,1248.6,1248.5,36.79413509]
[1672936923611,1e-08,1248.6,1248.5,36.79174236]
[1672936925991,1e-08,1248.6,1248.5,45.2951261]
[1672936926142,0.064,1248.8,1248.6,0.002]
[1672936926347,5.45901338,1248.9,1248.7,32.03328]
[1672936926597,5.45901338,1248.9,1248.7,36.24303822]
[1672936927353,2.46299334,1248.9,1248.7,36.24303822]
[1672936927585,5.39501338,1248.9,1248.7,36.24303822]
[1672936927718,5.45689251,1248.9,1248.7,36.24303822]
[1672936928088,2.46087247,1248.9,1248.7,36.24303822]
[1672936928299,5.39289251,1248.9,1248.7,36.24303822]
[1672936928524,5.45689251,1248.9,1248.7,36.24303822]
[1672936929530,2.46087247,1248.9,1248.7,36.24303822]
[1672936929768,5.39289251,1248.9,1248.7,36.24303822]
[1672936929998,2.46087247,1248.9,1248.7,36.24303822]
[1672936930194,2.39687247,1248.9,1248.7,36.24303822]
[1672936931126,5.39289251,1248.9,1248.7,36.24303822]
[1672936931322,5.45689251,1248.9,1248.7,36.24303822]
[1672936931537,2.46087247,1248.9,1248.7,36.24303822]
[1672936931849,2.39687247,1248.9,1248.7,36.24303822]
[1672936932064,5.39289251,1248.9,1248.7,36.24303822]
[1672936932342,2.46087247,1248.9,1248.7,36.24303822]
[1672936932524,5.39289251,1248.9,1248.7,36.24303822]
[1672936932870,5.45689251,1248.9,1248.7,36.24303822]
[1672936933047,2.46087247,1248.9,1248.7,36.24303822]
[1672936933234,2.39687247,1248.9,1248.7,36.24303822]
[1672936934110,12.00642004,1249.0,1248.7,36.24303822]
[1672936934321,12.05442004,1249.0,1248.7,36.24303822]
[1672936934479,12.00442004,1249.0,1248.7,36.24303822]
[1672936935797,14.40158489,1249.0,1248.7,40.40424043]
[1672936935968,4.08837,1249.0,1248.9,32.02816]
[1672936936179,5.48492073,1249.1,1248.9,35.33894072]
[1672936936412,5.48292073,1249.1,1248.9,35.33894072]
[1672936937336,2.39716485,1249.0,1248.9,35.33894072]
[1672936937540,2.39916485,1249.0,1248.9,35.33694072]
[1672936937757,2.39716485,1249.0,1248.9,35.33894072]
[1672936938418,2.48890069,1249.1,1248.9,35.33894072]
[1672936938593,5.41892073,1249.1,1248.9,35.33894072]
[1672936938800,5.48292073,1249.1,1248.9,35.33894072]
[1672936940373,2.48690069,1249.1,1248.9,35.33894072]
[1672936940581,5.41892073,1249.1,1248.9,35.33894072]
[1672936940792,5.48292073,1249.1,1248.9,35.33894072]
[1672936941827,2.48690069,1249.1,1248.9,35.33894072]
[1672936942041,5.41892073,1249.1,1248.9,35.33894072]
[1672936942304,5.48292073,1249.1,1248.9,32.09174384]
[1672936944361,2.39716485,1249.0,1248.9,32.09174384]
[1672936944799,5.48492073,1249.1,1248.9,32.09174384]
[1672936944974,5.48292073,1249.1,1248.9,32.09174384]
[1672936945546,2.39716485,1249.0,1248.9,32.09174384]
[1672936945799,5.48492073,1249.1,1248.9,36.5690791]
[1672936945965,5.48292073,1249.1,1248.9,32.09174384]
[1672936946417,2.39716485,1249.0,1248.9,32.09174384]
[1672936946631,2.39716485,1249.0,1248.9,8.07062384]
[1672936947433,5.39318489,1249.0,1248.9,8.07062384]
[1672936947643,5.45718489,1249.0,1248.9,8.07062384]
[1672936947851,5.45718489,1249.0,1248.9,16.07766384]
[1672936948067,2.46116485,1249.0,1248.9,24.08470384]
[1672936948342,2.39716485,1249.0,1248.9,24.08470384]
[1672936952303,5.48492073,1249.1,1248.9,24.08470384]
[1672936952556,5.48292073,1249.1,1248.9,24.08470384]
[1672936952928,5.48292073,1249.1,1248.9,32.09174384]
[1672936954662,0.83576712,1249.0,1248.9,32.09174384]
[1672936954810,0.83576712,1249.0,1248.9,36.5690791]
[1672936956134,3.23293197,1249.0,1248.9,36.5690791]
[1672936956651,3.23293197,1249.0,1248.9,36.56692127]
[1672936957340,0.83576712,1249.0,1248.9,36.56692127]
[1672936957881,3.23293197,1249.0,1248.9,36.56692127]
[1672936959285,3.23293197,1249.0,1248.9,36.56492127]
[1672936959286,3.23493197,1249.0,1248.9,36.56492127]
[1672936959443,3.23293197,1249.0,1248.9,36.56692127]
[1672936961938,0.83576712,1249.0,1248.9,36.56692127]
[1672936962253,3.23293197,1249.0,1248.9,36.56692127]
[1672936962420,0.83576712,1249.0,1248.9,36.56692127]
[1672936964929,3.23293197,1249.0,1248.9,36.56692127]
[1672936965914,6.22895201,1249.0,1248.9,36.56692127]
[1672936966250,6.29295201,1249.0,1248.9,32.08958601]
[1672936968094,6.29495201,1249.0,1248.9,32.08758601]
[1672936968307,6.29295201,1249.0,1248.9,32.08958601]
[1672936969609,3.89578716,1249.0,1248.9,32.08958601]
[1672936969821,3.23448313,1249.0,1248.9,32.08958601]
[1672936969992,3.23448313,1249.0,1248.9,36.56720827]
[1672936973185,6.23050317,1249.0,1248.9,36.56720827]
[1672936973332,3.29848313,1249.0,1248.9,36.56720827]
[1672936973539,3.23448313,1249.0,1248.9,36.56720827]
[1672936974214,6.23050317,1249.0,1248.9,36.56720827]
[1672936974386,3.29848313,1249.0,1248.9,32.08958601]
[1672936974753,6.23050317,1249.0,1248.9,32.08958601]
[1672936975018,6.29450317,1249.0,1248.9,32.08958601]
[1672936975365,3.29848313,1249.0,1248.9,32.08958601]
[1672936975711,3.23448313,1249.0,1248.9,32.08958601]
[1672936978237,3.23448313,1249.0,1248.9,36.56720827]
[1672936980107,6.23050317,1249.0,1248.9,36.56720827]
[1672936980335,6.29450317,1249.0,1248.9,36.56720827]
[1672936980761,6.29450317,1249.0,1248.9,36.56447102]
[1672936980930,6.29450317,1249.0,1248.9,32.08684876]
[1672936981545,3.29848313,1249.0,1248.9,32.08684876]
[1672936981800,3.23448313,1249.0,1248.9,32.08684876]
[1672936982656,6.23050317,1249.0,1248.9,32.08684876]
[1672936982818,6.29450317,1249.0,1248.9,32.08684876]
[1672936983559,3.29848313,1249.0,1248.9,32.08684876]
[1672936983770,3.23448313,1249.0,1248.9,32.08684876]
[1672936984232,6.23050317,1249.0,1248.9,32.08684876]
[1672936984388,6.29450317,1249.0,1248.9,32.08684876]
[1672936985656,5.93536164,1249.0,1248.9,32.08684876]
[1672936986976,2.9393416,1249.0,1248.9,32.08684876]
[1672936987271,2.8753416,1249.0,1248.9,36.5641973]
[1672936987487,0.47662559,1249.0,1248.9,36.5641973]
[1672936990491,0.47662559,1249.0,1248.9,38.55195767]
[1672936990698,0.47662559,1249.0,1248.9,36.5641973]
[1672936990916,0.47662559,1249.0,1248.9,38.55198188]
[1672936992316,0.47662559,1249.0,1248.9,41.53353998]
[1672936992532,0.47662559,1249.0,1248.9,38.55198188]
[1672936992680,0.47662559,1249.0,1248.9,36.5641973]
[1672936996637,0.47662559,1249.0,1248.9,38.55194452]
[1672936996823,0.47862559,1249.0,1248.9,38.54994452]
[1672936997042,0.47662559,1249.0,1248.9,38.55194452]
[1672936997421,0.47662559,1249.0,1248.9,38.55194349]
[1672936997650,0.47662559,1249.0,1248.9,36.5641973]
[1672936998064,0.47662559,1249.0,1248.9,38.55191769]
[1672936998541,1e-08,1249.0,1248.9,45.95454483]
[1672936998706,0.47662559,1249.0,1248.9,45.95451678]
[1672936999171,0.47662559,1249.0,1248.9,42.97301058]
[1672936999492,1e-08,1249.0,1248.9,53.12389685]
[1672936999712,0.02573584,1249.1,1248.9,53.12389685]
[1672936999872,0.02573584,1249.1,1249.0,3.0]
[1672937000225,0.02573584,1249.1,1249.0,32.56661089]
[1672937000394,0.02573584,1249.1,1249.0,32.63019473]
[1672937000814,0.02573584,1249.1,1249.0,40.63659473]
[1672937001537,0.02573584,1249.1,1249.0,42.62412958]
[1672937002094,0.02573584,1249.1,1249.0,54.18872958]
[1672937002435,0.02573584,1249.1,1249.0,52.20119473]
[1672937003927,0.02573584,1249.1,1249.0,60.34802693]
[1672937004223,0.02573584,1249.1,1249.0,58.17784033]
[1672937005363,0.02573584,1249.1,1249.0,56.19034424]
[1672937009360,0.02573584,1249.1,1249.0,58.17777752]
[1672937009551,0.02573584,1249.1,1249.0,62.4999919]
[1672937009760,0.02573584,1249.1,1249.0,58.17777752]
[1672937010585,0.03772821,1249.2,1249.1,3.5]
[1672937010917,0.03772821,1249.2,1249.1,36.22084113]
[1672937011130,0.03772821,1249.2,1249.1,36.28442497]
[1672937011472,0.03972821,1249.2,1249.1,36.28242497]
[1672937011641,0.03772821,1249.2,1249.1,36.28442497]
[1672937015592,0.03772821,1249.2,1249.1,40.27357448]
[1672937023648,0.03772821,1249.2,1249.1,36.28442497]
[1672937034491,8.21e-06,1249.2,1249.1,43.27357448]
[1672937034724,0.04175541,1249.3,1249.2,3.5377282]
[1672937034928,0.04175541,1249.3,1249.2,44.16838289]
[1672937035099,0.04175541,1249.3,1249.2,44.66391011]
[1672937035307,0.04175541,1249.3,1249.2,50.9733554]
[1672937035537,0.04175541,1249.3,1249.2,46.65114102]
[1672937035726,0.04175541,1249.3,1249.2,54.77314102]
[1672937035943,0.04175541,1249.3,1249.2,52.78591011]
[1672937036416,0.04175541,1249.3,1249.2,56.77505962]
[1672937036627,5.41e-06,1249.3,1249.2,61.74288042]
[1672937036942,5.41e-06,1249.3,1249.2,67.26357328]
[1672937037156,5.41e-06,1249.3,1249.2,81.26157328]
[1672937037313,5.41e-06,1249.3,1249.2,81.26357328]
[1672937038179,5.41e-06,1249.3,1249.2,82.09964119]
[1672937038568,0.04371835,1249.5,1249.3,3.5]
[1672937038773,0.04371835,1249.5,1249.3,19.7855276]
[1672937038983,0.04371835,1249.5,1249.4,35.45484307]
[1672937039252,0.04371835,1249.5,1249.4,35.51842691]
[1672937040515,0.04371835,1249.5,1249.4,39.50757642]
[1672937042497,0.04371835,1249.5,1249.4,43.8297908]
[1672937042667,0.04371835,1249.5,1249.4,46.91128187]
[1672937046237,0.04371835,1249.5,1249.4,38.90744187]
[1672937046713,0.04371835,1249.5,1249.4,46.91128187]
[1672937047096,0.04371835,1249.5,1249.4,38.90744187]
[1672937048486,0.04371835,1249.5,1249.4,46.91128187]
[1672937048875,0.04371835,1249.5,1249.4,38.90744187]
[1672937049972,0.04371835,1249.5,1249.4,46.91128187]
[1672937050575,0.04371835,1249.5,1249.4,51.23349625]
[1672937050786,8.35e-06,1249.5,1249.4,51.23349625]
[1672937051044,0.04954279,1249.6,1249.4,46.91128187]
[1672937051270,0.04954279,1249.6,1249.5,32.45228307]
[1672937051420,0.04954279,1249.6,1249.5,39.58273454]
[1672937051635,0.04954279,1249.6,1249.5,42.58273454]
[1672937052426,0.04954279,1249.6,1249.5,46.57188405]
[1672937052569,6.88e-06,1249.7,1249.5,46.57188405]
[1672937052785,6.88e-06,1249.7,1249.6,7.42863258]
[1672937053030,6.88e-06,1249.7,1249.6,36.88930626]
[1672937053225,6.88e-06,1249.7,1249.6,44.89186626]
[1672937053680,6.88e-06,1249.7,1249.6,57.09346626]
[1672937056519,6.88e-06,1249.7,1249.6,61.41568064]
[1672937057309,6.88e-06,1249.7,1249.6,57.09346626]
[1672937063223,6.88e-06,1249.7,1249.6,23.70722691]
[1672937063396,6.88e-06,1249.7,1249.6,39.71234691]
[1672937064054,6.88e-06,1249.7,1249.6,31.70978691]
[1672937064266,6.88e-06,1249.7,1249.6,39.71234691]
[1672937065029,6.88e-06,1249.7,1249.6,31.70978691]
[1672937065201,6.88e-06,1249.7,1249.6,23.70722691]
[1672937065601,6.88e-06,1249.7,1249.6,23.26774384]
[1672937066069,6.88e-06,1249.7,1249.6,12.26518384]
[1672937067098,6.88e-06,1249.7,1249.6,0.06358384]
[1672937067304,2.39872289,1249.7,1249.5,31.60616384]
[1672937067636,6.88e-06,1249.7,1249.6,16.00512]
[1672937067848,1.09519977,1249.7,1249.6,16.06870384]
[1672937068652,1.09519977,1249.7,1249.6,8.06614384]
[1672937069078,1.09519977,1249.7,1249.6,16.06870384]
[1672937069529,3.49391578,1249.7,1249.6,24.07126384]
[1672937069740,1.09519977,1249.7,1249.6,24.07126384]
[1672937069969,3.49391578,1249.7,1249.6,24.07126384]
[1672937070556,3.49391578,1249.7,1249.6,16.06870384]
[1672937071180,3.49391578,1249.7,1249.6,8.06614384]
[1672937071390,3.49391578,1249.7,1249.6,16.06870384]
[1672937071760,6.48993582,1249.7,1249.6,8.06614384]
[1672937072071,6.55393582,1249.7,1249.6,8.06614384]
[1672937072388,3.55791578,1249.7,1249.6,16.06870384]
[1672937072704,3.49391578,1249.7,1249.6,16.06870384]
[1672937072849,3.49391578,1249.7,1249.6,8.06614384]
[1672937073064,4.09121981,1249.7,1249.6,0.06358384]
[1672937073294,4.09121981,1249.7,1249.5,29.5031236]
[1672937073589,2.3965812,1249.6,1249.5,21.5003436]
[1672937073859,2.3965812,1249.6,1249.5,32.5035436]
[1672937074018,2.3965812,1249.6,1249.5,32.9726436]
[1672937075592,2.3965812,1249.6,1249.5,27.51211691]
[1672937075796,2.3965812,1249.6,1249.5,27.50875537]
[1672937076214,5.39260124,1249.6,1249.5,27.50875537]
[1672937076424,5.45660124,1249.6,1249.5,27.50875537]
[1672937077071,2.4605812,1249.6,1249.5,27.50875537]
[1672937077324,5.39260124,1249.6,1249.5,27.50875537]
[1672937077481,5.45660124,1249.6,1249.5,27.50875537]
[1672937078577,2.4605812,1249.6,1249.5,27.50875537]
[1672937078897,2.3965812,1249.6,1249.5,27.50875537]
[1672937080375,2.3965812,1249.6,1249.5,19.50555537]
[1672937081715,5.39260124,1249.6,1249.5,19.50555537]
[1672937082049,5.45660124,1249.6,1249.5,19.50555537]
[1672937082263,2.4605812,1249.6,1249.5,19.50555537]
[1672937082477,2.3965812,1249.6,1249.5,19.50555537]
[1672937082626,5.39260124,1249.6,1249.5,19.50555537]
[1672937082833,5.45660124,1249.6,1249.5,19.50555537]
[1672937083043,5.45660124,1249.6,1249.5,27.50875537]
[1672937083514,2.4605812,1249.6,1249.5,27.50875537]
[1672937083673,5.39260124,1249.6,1249.5,19.50555537]
[1672937083884,5.45660124,1249.6,1249.5,19.50555537]
[1672937084308,5.45660124,1249.6,1249.5,27.50875537]
[1672937084515,2.4605812,1249.6,1249.5,27.50875537]
[1672937084726,2.3965812,1249.6,1249.5,27.50875537]
[1672937086633,2.3965812,1249.6,1249.5,27.0692723]
[1672937087689,2.3965812,1249.6,1249.5,35.0724723]
[1672937092360,2.3965812,1249.6,1249.5,39.72119953]
[1672937093493,3.55778097,1249.7,1249.5,39.72119953]
[1672937093666,3.49178097,1249.7,1249.5,39.72119953]
[1672937094663,6.48780101,1249.7,1249.5,39.72119953]
[1672937094879,6.55180101,1249.7,1249.5,39.72119953]
[1672937097347,2.3965812,1249.6,1249.5,39.72119953]
[1672937098876,2.3965812,1249.6,1249.5,39.71778759]
[1672937100304,5.39260124,1249.6,1249.5,39.71778759]
[1672937100520,5.45660124,1249.6,1249.5,31.71458759]
[1672937100715,5.45660124,1249.6,1249.5,27.06586036]
[1672937102861,5.45965681,1249.6,1249.5,27.06586036]
[1672937104423,2.46363677,1249.6,1249.5,27.06586036]
[1672937104613,5.39565681,1249.6,1249.5,27.06586036]
[1672937104823,5.45965681,1249.6,1249.5,27.06586036]
[1672937110703,5.45965681,1249.6,1249.5,35.06906036]
[1672937110946,5.45965681,1249.6,1249.5,39.7174464]
[1672937111165,5.45965681,1249.6,1249.5,31.7142464]
[1672937111836,2.46363677,1249.6,1249.5,31.7142464]
[1672937112003,2.39963677,1249.6,1249.5,31.7142464]
[1672937112191,2.39963677,1249.6,1249.5,39.7174464]
[1672937113593,2.39963677,1249.6,1249.5,31.7142464]
[1672937113931,2.39963677,1249.6,1249.5,27.06586036]
[1672937114092,2.29963677,1249.6,1249.5,27.06586036]
[1672937114713,5.29565681,1249.6,1249.5,27.06586036]
[1672937114944,5.35965681,1249.6,1249.5,27.06586036]
[1672937115344,5.35965681,1249.6,1249.5,35.06906036]
[1672937115578,5.35965681,1249.6,1249.5,31.7142464]
[1672937116147,2.36363677,1249.6,1249.5,39.7174464]
[1672937116308,2.29963677,1249.6,1249.5,39.7174464]
[1672937117813,2.24963677,1249.6,1249.5,31.7142464]
[1672937118342,2.24963677,1249.6,1249.5,39.7174464]
[1672937121388,2.24963677,1249.6,1249.5,43.70659591]
[1672937125230,4.15721981,1249.7,1249.5,43.70659591]
[1672937125434,4.09121981,1249.7,1249.5,43.70659591]
[1672937125644,2.40095691,1249.6,1249.5,43.70659591]
[1672937125851,2.40295691,1249.6,1249.5,43.70459591]
[1672937126112,2.40095691,1249.6,1249.5,44.14607898]
[1672937127216,6.55817672,1249.7,1249.6,1.19207926]
[1672937127428,6.55617672,1249.7,1249.6,5.92457641]
[1672937127632,6.55617672,1249.7,1249.6,37.99840025]
[1672937127896,6.55617672,1249.7,1249.6,41.98754976]
[1672937128114,3.56015668,1249.7,1249.6,42.42703283]
[1672937128435,3.49615668,1249.7,1249.6,42.42703283]
[1672937132363,6.49217672,1249.7,1249.6,42.42703283]
[1672937132573,6.55617672,1249.7,1249.6,42.42703283]
[1672937133152,3.56015668,1249.7,1249.6,42.42703283]
[1672937133343,3.49615668,1249.7,1249.6,42.42703283]
[1672937133972,3.34815668,1249.7,1249.6,42.42503283]
[1672937134215,6.34217672,1249.7,1249.6,42.42703283]
[1672937134426,6.40617672,1249.7,1249.6,42.42703283]
[1672937134585,3.41015668,1249.7,1249.6,42.42703283]
[1672937134801,6.34217672,1249.7,1249.6,42.42703283]
[1672937135010,6.40617672,1249.7,1249.6,42.42703283]
[1672937136197,3.41015668,1249.7,1249.6,42.42703283]
[1672937136412,6.34217672,1249.7,1249.6,42.42703283]
[1672937136692,6.40617672,1249.7,1249.6,42.42703283]
[1672937137160,6.25617672,1249.7,1249.6,42.42703283]
[1672937139168,6.25617672,1249.7,1249.6,38.43788332]
[1672937139479,3.85521981,1249.7,1249.6,17.70026617]
[1672937139684,3.79121981,1249.7,1249.6,17.70026617]
[1672937139840,3.79121981,1249.7,1249.6,25.70282617]
[1672937140613,6.19165811,1249.7,1249.6,25.70282617]
[1672937140827,6.25565811,1249.7,1249.6,33.70538617]
[1672937140992,6.10565811,1249.7,1249.6,25.70282617]
[1672937141874,3.10963807,1249.7,1249.6,35.71393875]
[1672937142059,3.04563807,1249.7,1249.6,27.71137875]
[1672937143365,87.74523107,1249.7,1249.6,27.71137875]
[1672937143551,87.80923107,1249.7,1249.6,27.71137875]
[1672937144569,87.65923107,1249.7,1249.6,27.71137875]
[1672937146205,87.65923107,1249.7,1249.6,25.70282617]
[1672937147879,87.50923107,1249.7,1249.6,25.70282617]
[1672937150298,90.50525111,1249.7,1249.6,9.69770617]
[1672937150668,90.50525111,1249.7,1249.6,17.70026617]
[1672937151678,90.50525111,1249.7,1249.6,9.69770617]
[1672937151892,90.50525111,1249.7,1249.6,25.70282617]
[1672937152207,90.50525111,1249.7,1249.6,17.70026617]
[1672937152636,90.35525111,1249.7,1249.6,17.70026617]
[1672937152946,90.35525111,1249.7,1249.6,25.70282617]
[1672937153365,87.95481281,1249.7,1249.6,17.70026617]
[1672937153673,90.30584261,1249.7,1249.6,25.70282617]
[1672937155091,87.90481281,1249.7,1249.6,25.70282617]
[1672937155946,87.75481281,1249.7,1249.6,25.70282617]
[1672937156375,87.75481281,1249.7,1249.6,17.70026617]
[1672937158057,87.75481281,1249.7,1249.6,25.70282617]
[1672937158729,87.75481281,1249.7,1249.6,41.3650763]
[1672937158878,87.16011112,1249.7,1249.6,41.5950763]
[1672937159718,90.15613116,1249.7,1249.6,33.5925163]
[1672937159922,87.16011112,1249.7,1249.6,33.5925163]
[1672937160341,87.16011112,1249.7,1249.6,25.5899563]
[1672937160570,90.15613116,1249.7,1249.6,33.5925163]
[1672937161018,87.16011112,1249.7,1249.6,33.5925163]
[1672937161538,87.16011112,1249.7,1249.6,41.5950763]
[1672937161749,87.16011112,1249.7,1249.6,33.5925163]
[1672937162350,90.15613116,1249.7,1249.6,33.5925163]
[1672937162735,87.16011112,1249.7,1249.6,44.5950763]
[1672937162872,87.16211112,1249.7,1249.6,36.5905163]
[1672937163085,87.16011112,1249.7,1249.6,36.5925163]
[1672937166772,90.15613116,1249.7,1249.6,36.5925163]
[1672937167142,87.16011112,1249.7,1249.6,36.5925163]
[1672937168578,90.15613116,1249.7,1249.6,36.5925163]
[1672937169562,87.75481281,1249.7,1249.6,36.5925163]
[1672937169778,87.75481281,1249.7,1249.6,28.5899563]
[1672937169923,87.75481281,1249.7,1249.6,12.69770617]
[1672937170131,87.75481281,1249.7,1249.6,20.70026617]
[1672937171445,87.75481281,1249.7,1249.6,28.70282617]
[1672937173088,87.75481281,1249.7,1249.6,36.70538617]
[1672937173302,90.15729883,1249.7,1249.6,32.67139003]
[1672937173721,90.15729883,1249.7,1249.6,40.67395003]
[1672937173968,87.16127879,1249.7,1249.6,40.67395003]
[1672937174983,90.15729883,1249.7,1249.6,40.67395003]
[1672937175195,87.16127879,1249.7,1249.6,40.67395003]
[1672937176095,87.16127879,1249.7,1249.6,44.66309954]
[1672937176304,87.16127879,1249.7,1249.6,44.89309954]
[1672937177191,87.16127879,1249.7,1249.6,36.89053954]
[1672937177650,87.16127879,1249.7,1249.6,44.89309954]
[1672937178725,87.16127879,1249.7,1249.6,44.89069579]
[1672937180154,87.16127879,1249.7,1249.6,36.88813579]
[1672937183710,87.16127879,1249.7,1249.6,44.89069579]
[1672937184610,87.16127879,1249.7,1249.6,36.88813579]
[1672937187834,87.16127879,1249.7,1249.6,44.89069579]
[1672937190480,87.16127879,1249.7,1249.6,36.88813579]
[1672937193686,90.15729883,1249.7,1249.6,36.88813579]
[1672937194048,90.15729883,1249.7,1249.6,16.91445193]
[1672937194256,87.75481281,1249.7,1249.6,32.68957193]
[1672937194951,87.75681281,1249.7,1249.6,32.68757193]
[1672937195090,87.75481281,1249.7,1249.6,32.68957193]
[1672937196141,87.75481281,1249.7,1249.6,28.70042242]
[1672937197581,90.15581326,1249.7,1249.6,28.70042242]
[1672937197722,87.75481281,1249.7,1249.6,28.70042242]
[1672937198591,90.15555281,1249.7,1249.6,28.70042242]
[1672937199839,87.75481281,1249.7,1249.6,28.70042242]
[1672937200180,90.1553772,1249.7,1249.6,28.70042242]
[1672937200568,87.75481281,1249.7,1249.6,20.69786242]
[1672937200778,87.75481281,1249.7,1249.6,20.69547785]
[1672937201454,85.35939277,1249.7,1249.6,1.25087478]
[1672937201718,85.35939277,1249.7,1249.6,1.18729094]
[1672937201719,88.36019723,1249.7,1249.6,1.18729094]
[1672937201885,88.95798319,1249.7,1249.6,1.18729094]
[1672937202419,85.35939277,1249.7,1249.6,1.18729094]